bitfinex-derivatives/quotes_BTCF0:USTF0_20260131
["timestamp","ask_amount","ask_price","bid_price","bid_amount"]
[1769898726996,0.27489497,78318.0,78296.0,0.012789]
[1769898726997,0.28663882,78312.0,78296.0,0.10356]
[1769898727196,0.28663982,78310.0,78296.0,0.10356]
[1769898727392,0.10356,78317.0,78282.0,0.10356]
[1769898727393,0.28664082,78301.0,78282.0,0.10356]
[1769898727904,0.27385282,78301.0,78282.0,0.10356]
[1769898728402,0.27385282,78294.0,78282.0,0.10356]
[1769898728590,0.116349,78293.0,78273.0,0.28525822]
[1769898728798,0.28664282,78291.0,78272.0,0.116353]
[1769898728996,0.27385282,78291.0,78272.0,0.116353]
[1769898730199,0.27385282,78287.0,78272.0,0.10356]
[1769898731001,0.012791,78284.0,78265.0,0.012794]
[1769898731198,0.28664382,78284.0,78265.0,0.012794]
[1769898731394,0.10356,78283.0,78265.0,0.012794]
[1769898731599,0.37741282,78283.0,78265.0,0.012794]
[1769898731994,0.012791,78282.0,78262.0,0.116354]
[1769898732199,0.37741282,78283.0,78263.0,0.012794]
[1769898732898,0.39020382,78283.0,78263.0,0.012794]
[1769898733093,0.27385282,78282.0,78263.0,0.012794]
[1769898733294,0.28664382,78281.0,78262.0,0.10356]
[1769898734097,0.28664382,78281.0,78260.0,0.012795]
[1769898734299,0.27385282,78278.0,78258.0,0.01482651]
[1769898734603,0.27385282,78278.0,78257.0,0.012795]
[1769898734907,0.27385282,78276.0,78257.0,0.10356]
[1769898735702,0.28664482,78275.0,78257.0,0.10356]
[1769898737709,0.27385282,78277.0,78257.0,0.116355]
[1769898737904,0.27385282,78275.0,78257.0,0.116355]
[1769898738203,0.27385282,78275.0,78257.0,0.10356]
[1769898738902,0.10356,78274.0,78257.0,0.10356]
[1769898739502,0.10356,78274.0,78258.0,0.012795]
[1769898739804,0.10356,78274.0,78257.0,0.10356]
[1769898741007,0.3172,78330.0,78260.0,0.28525822]
[1769898741008,0.27385282,78295.0,78260.0,0.28525822]
[1769898741307,0.17136205,78294.0,78275.0,0.28525822]
[1769898741611,0.012789,78298.0,78279.0,0.29805022]
[1769898742406,0.1036,78299.0,78279.0,0.29805022]
[1769898742911,0.27828378,78320.0,78286.0,0.01279]
[1769898742912,0.012787,78306.0,78286.0,0.01279]
[1769898743208,0.1036,78306.0,78291.0,0.01279]
[1769898743606,0.1036,78306.0,78293.0,0.012789]
[1769898743815,0.1036,78306.0,78293.0,0.29804722]
[1769898744005,0.1036,78306.0,78295.0,0.29804722]
[1769898744209,0.012784,78324.0,78302.0,0.29804622]
[1769898744415,0.27758091,78323.0,78302.0,0.29804622]
[1769898744713,0.10356,78323.0,78302.0,0.29804622]
[1769898745012,0.10356,78323.0,78305.0,0.012787]
[1769898745212,0.10356,78323.0,78302.0,0.28525822]
[1769898746119,0.10356,78323.0,78303.0,0.012788]
[1769898746920,0.10356,78323.0,78305.0,0.29804522]
[1769898747116,0.10356,78323.0,78299.0,0.10356]
[1769898747117,0.10356,78323.0,78309.0,0.28525822]
[1769898748020,0.10356,78323.0,78312.0,0.012786]
[1769898748919,0.26545518,78330.0,78312.0,0.29804422]
[1769898750416,0.26545518,78330.0,78300.0,0.10356]
[1769898750417,0.27385282,78324.0,78300.0,0.10356]
[1769898750620,0.012784,78329.0,78300.0,0.10356]
[1769898750621,0.26545518,78310.0,78300.0,0.10356]
[1769898750920,0.26545518,78310.0,78291.0,0.10356]
[1769898751321,0.26545518,78310.0,78292.0,0.012789]
[1769898751711,0.26545518,78310.0,78294.0,0.012789]
[1769898754124,0.26545518,78310.0,78291.0,0.116349]
[1769898754420,0.26545518,78310.0,78293.0,0.012789]
[1769898754622,0.26545518,78310.0,78295.0,0.012789]
[1769898754823,0.26545518,78310.0,78291.0,0.10356]
[1769898754824,0.26545518,78310.0,78299.0,0.28525822]
[1769898755218,0.27385282,78321.0,78299.0,0.28525822]
[1769898755720,0.10356,78322.0,78301.0,0.28525822]
[1769898755920,0.10356,78322.0,78302.0,0.28525822]
[1769898756124,0.10356,78322.0,78303.0,0.012788]
[1769898756519,0.10356,78322.0,78303.0,0.29804622]
[1769898757021,0.10356,78322.0,78303.0,0.28525822]
[1769898758119,0.10356,78322.0,78303.0,0.29804622]
[1769898759922,0.116345,78322.0,78303.0,0.29804622]
[1769898760220,0.116345,78322.0,78301.0,0.10356]
[1769898760221,0.30333106,78320.0,78301.0,0.10356]
[1769898760417,0.10356,78322.0,78301.0,0.10356]
[1769898760418,0.29054606,78316.0,78301.0,0.10356]
[1769898760618,0.29054606,78306.0,78288.0,0.10356]
[1769898760823,0.29054606,78298.0,78283.0,0.10356]
[1769898761123,0.29054606,78295.0,78279.0,0.10356]
[1769898761325,0.012789,78294.0,78279.0,0.10356]
[1769898761525,0.30333506,78295.0,78279.0,0.10356]
[1769898762235,0.29353563,78289.0,78270.0,0.012793]
[1769898762423,0.29353563,78286.0,78267.0,0.116354]
[1769898762623,0.30632663,78285.0,78267.0,0.10356]
[1769898762922,0.012791,78283.0,78267.0,0.10356]
[1769898763125,0.10356,78286.0,78268.0,0.29526928]
[1769898763724,0.10356,78286.0,78269.0,0.012793]
[1769898764334,0.116349,78298.0,78278.0,0.30806128]
[1769898767628,0.10356,78298.0,78281.0,0.012791]
[1769898767825,0.10356,78298.0,78287.0,0.29526928]
[1769898768028,0.10356,78307.0,78291.0,0.30805928]
[1769898768431,0.10356,78307.0,78294.0,0.29526928]
[1769898768834,0.26545518,78310.0,78296.0,0.29526928]
[1769898770833,0.4838,78315.0,78296.0,0.29526928]
[1769898771135,0.18643763,78314.0,78296.0,0.29526928]
[1769898771336,0.18643763,78313.0,78297.0,0.012789]
[1769898771635,0.18643763,78312.0,78297.0,0.012789]
[1769898771839,0.4838,78315.0,78298.0,0.29526928]
[1769898772029,0.18613638,78314.0,78298.0,0.29526928]
[1769898772237,0.29353563,78312.0,78295.0,0.10356]
[1769898772432,0.30632163,78311.0,78295.0,0.10356]
[1769898773432,0.29353563,78310.0,78295.0,0.10356]
[1769898773839,0.012786,78314.0,78296.0,0.012789]
[1769898774039,0.18574177,78313.0,78296.0,0.012789]
[1769898774342,0.18574177,78312.0,78296.0,0.012789]
[1769898774540,0.012786,78314.0,78296.0,0.012789]
[1769898774741,0.18570057,78313.0,78296.0,0.012789]
[1769898774938,0.18570057,78312.0,78296.0,0.012789]
[1769898775239,0.012786,78314.0,78296.0,0.012789]
[1769898775439,0.18570213,78313.0,78296.0,0.012789]
[1769898775632,0.18570213,78312.0,78296.0,0.012789]
[1769898775829,0.012786,78314.0,78296.0,0.012789]
[1769898776033,0.18570213,78313.0,78296.0,0.012789]
[1769898776232,0.18570213,78312.0,78296.0,0.012789]
[1769898776431,0.30632163,78314.0,78296.0,0.012789]
[1769898776743,0.18570688,78313.0,78296.0,0.012789]
[1769898776941,0.18570688,78312.0,78296.0,0.012789]
[1769898777241,0.30632163,78314.0,78296.0,0.012789]
[1769898777442,0.18571739,78313.0,78296.0,0.012789]
[1769898777639,0.18571739,78312.0,78296.0,0.012789]
[1769898777843,0.30632163,78314.0,78296.0,0.012789]
[1769898778039,0.18532493,78313.0,78296.0,0.012789]
[1769898778238,0.18532493,78312.0,78296.0,0.012789]
[1769898778440,0.30632163,78314.0,78296.0,0.012789]
[1769898778639,0.1853548,78313.0,78296.0,0.012789]
[1769898778938,0.47889043,78312.0,78296.0,0.012789]
[1769898779244,0.47892776,78311.0,78295.0,0.10356]
[1769898779442,0.29353563,78310.0,78295.0,0.10356]
[1769898779946,0.29353563,78308.0,78295.0,0.10356]
[1769898780243,0.29353563,78308.0,78291.0,0.01279]
[1769898780443,0.29353563,78308.0,78292.0,0.012789]
[1769898780740,0.26545518,78320.0,78302.0,0.012788]
[1769898781042,0.18526362,78319.0,78301.0,0.29526928]
[1769898781241,0.18526362,78318.0,78301.0,0.29526928]
[1769898781443,0.18526362,78317.0,78301.0,0.29526928]
[1769898781643,0.47879925,78316.0,78299.0,0.012788]
[1769898781940,0.18526362,78315.0,78299.0,0.29526928]
[1769898782143,0.10356,78319.0,78299.0,0.29526928]
[1769898782144,0.18526362,78314.0,78299.0,0.29526928]
[1769898782341,0.10356,78319.0,78299.0,0.29526928]
[1769898782539,0.29353563,78318.0,78298.0,0.012788]
[1769898782731,0.1828972,78317.0,78298.0,0.012788]
[1769898782935,0.1828972,78316.0,78297.0,0.30805828]
[1769898783137,0.10356,78319.0,78302.0,0.012788]
[1769898783338,0.10356,78319.0,78299.0,0.012788]
[1769898784132,0.10356,78319.0,78297.0,0.29526928]
[1769898784333,0.10356,78319.0,78303.0,0.012788]
[1769898785439,0.10356,78319.0,78300.0,0.012788]
[1769898785634,0.10356,78319.0,78302.0,0.012788]
[1769898785839,0.26545518,78330.0,78296.0,0.10356]
[1769898785840,0.10356,78337.0,78315.0,0.29526928]
[1769898786041,0.17879196,78336.0,78324.0,0.012784]
[1769898786247,0.10356,78340.0,78324.0,0.012784]
[1769898786546,0.17871404,78339.0,78324.0,0.012784]
[1769898786741,0.10356,78340.0,78324.0,0.012784]
[1769898786941,0.17380642,78339.0,78324.0,0.012784]
[1769898787142,0.10356,78340.0,78324.0,0.012784]
[1769898790045,0.2975455,78339.0,78324.0,0.012784]
[1769898790751,0.2975455,78352.0,78333.0,0.012783]
[1769898790952,0.2975455,78350.0,78333.0,0.012783]
[1769898791248,0.17719221,78349.0,78333.0,0.012783]
[1769898791446,0.10352,78348.0,78335.0,0.012782]
[1769898791646,0.10352,78357.0,78334.0,0.3056073]
[1769898791841,0.2975455,78360.0,78339.0,0.2928243]
[1769898792039,0.2975455,78360.0,78346.0,0.012781]
[1769898792943,0.10352,78361.0,78343.0,0.10352]
[1769898793147,0.10352,78361.0,78349.0,0.01278]
[1769898793346,0.10352,78361.0,78344.0,0.2928243]
[1769898793745,0.10352,78361.0,78346.0,0.2928243]
[1769898794350,0.10352,78361.0,78348.0,0.01278]
[1769898794848,0.10352,78361.0,78348.0,0.3056043]
[1769898795949,0.012773,78392.0,78368.0,0.012777]
[1769898796143,0.10352,78388.0,78373.0,0.012776]
[1769898796350,0.10352,78388.0,78370.0,0.26545518]
[1769898797849,0.2975455,78387.0,78370.0,0.26545518]
[1769898798147,0.2975455,78387.0,78370.0,0.27823218]
[1769898798352,0.2975455,78387.0,78371.0,0.012776]
[1769898799350,0.2975455,78387.0,78370.0,0.26545518]
[1769898799956,0.2975455,78387.0,78371.0,0.012776]
[1769898800653,0.2975455,78387.0,78373.0,0.012776]
[1769898801250,0.4010255,78386.0,78375.0,0.012776]
[1769898801444,0.2975455,78386.0,78375.0,0.012776]
[1769898801645,0.10348,78385.0,78377.0,0.012776]
[1769898801852,0.10348,78384.0,78377.0,0.012776]
[1769898802155,0.10348,78389.0,78377.0,0.012776]
[1769898802545,0.2975455,78392.0,78378.0,0.012775]
[1769898802944,0.2975455,78392.0,78377.0,0.012776]
[1769898803348,0.012772,78397.0,78377.0,0.012776]
[1769898803549,0.2975455,78398.0,78380.0,0.012775]
[1769898803749,0.2975455,78398.0,78373.0,0.2928243]
[1769898803750,0.2975455,78398.0,78374.0,0.116256]
[1769898803956,0.10348,78402.0,78388.0,0.26545518]
[1769898804450,0.10348,78402.0,78384.0,0.012774]
[1769898804650,0.2975455,78404.0,78386.0,0.012774]
[1769898804855,0.2975455,78403.0,78390.0,0.26545518]
[1769898805152,0.10348,78402.0,78390.0,0.26545518]
[1769898805356,0.10348,78402.0,78392.0,0.012773]
[1769898805953,0.10348,78402.0,78390.0,0.26545518]
[1769898805954,0.2975455,78409.0,78394.0,0.012773]
[1769898806144,0.2975455,78407.0,78394.0,0.012773]
[1769898806755,0.10348,78406.0,78394.0,0.012773]
[1769898807853,0.2975455,78407.0,78394.0,0.012773]
[1769898808152,0.4010255,78407.0,78394.0,0.012773]
[1769898808353,0.2975455,78406.0,78394.0,0.012773]
[1769898809354,0.2975455,78406.0,78391.0,0.012773]
[1769898811054,0.2975455,78406.0,78383.0,0.10348]
[1769898811251,0.2975455,78401.0,78385.0,0.012774]
[1769898811654,0.10348,78407.0,78383.0,0.10348]
[1769898811655,0.2975455,78396.0,78383.0,0.10348]
[1769898812257,0.2975455,78396.0,78382.0,0.012775]
[1769898813746,0.2975455,78396.0,78379.0,0.012775]
[1769898814350,0.2975455,78396.0,78374.0,0.10344]
[1769898814551,0.2975455,78396.0,78374.0,0.11960107]
[1769898814954,0.2975455,78396.0,78381.0,0.012775]
[1769898816347,0.2975455,78396.0,78378.0,0.012775]
[1769898816548,0.2975455,78392.0,78376.0,0.012776]
[1769898816755,0.2975455,78392.0,78374.0,0.116216]
[1769898816953,0.2975455,78392.0,78376.0,0.012776]
[1769898817255,0.3103185,78392.0,78374.0,0.116216]
[1769898817761,0.27006587,78387.0,78374.0,0.10344]
[1769898818152,0.27006587,78388.0,78374.0,0.10344]
[1769898820359,0.27006587,78385.0,78363.0,0.10344]
[1769898821855,0.27006587,78385.0,78370.0,0.012777]
[1769898824360,0.27006587,78385.0,78367.0,0.012777]
[1769898824658,0.27006587,78385.0,78369.0,0.012777]
[1769898829161,0.27006587,78385.0,78370.0,0.012777]
[1769898831670,0.28283987,78385.0,78367.0,0.012777]
[1769898831872,0.27006587,78385.0,78367.0,0.012777]
[1769898832170,0.27006587,78385.0,78368.0,0.012777]
[1769898834771,0.27006587,78385.0,78366.0,0.012777]
[1769898835071,0.27006587,78385.0,78363.0,0.10344]
[1769898835966,0.27006587,78385.0,78366.0,0.012777]
[1769898836271,0.27006587,78385.0,78367.0,0.012777]
[1769898836470,0.27006587,78385.0,78365.0,0.012778]
[1769898836669,0.27130406,78383.0,78363.0,0.10344]
[1769898836872,0.27130406,78378.0,78363.0,0.10344]
[1769898837174,0.27130406,78376.0,78363.0,0.10344]
[1769898837372,0.27130406,78375.0,78363.0,0.10344]
[1769898837867,0.27130406,78375.0,78363.0,0.116218]
[1769898839976,0.27130406,78375.0,78364.0,0.012778]
[1769898841169,0.27130406,78375.0,78361.0,0.012778]
[1769898842170,0.27130406,78375.0,78356.0,0.0154777]
[1769898842373,0.27130406,78373.0,78356.0,0.012779]
[1769898842778,0.27130406,78371.0,78354.0,0.00010633]
[1769898843079,0.43244,78370.0,78354.0,0.00010633]
[1769898843273,0.27130406,78367.0,78350.0,0.10344]
[1769898843473,0.27130406,78365.0,78350.0,0.10344]
[1769898844574,0.27130406,78365.0,78351.0,0.01278]
[1769898845272,0.27130406,78365.0,78350.0,0.11622]
[1769898846876,0.27130406,78365.0,78350.0,0.10344]
[1769898848371,0.27130406,78365.0,78350.0,0.11622]
[1769898852278,0.27130406,78365.0,78350.0,0.10344]
[1769898853478,0.27130406,78365.0,78350.0,0.11622]
[1769898853679,0.27130406,78365.0,78352.0,0.01278]
[1769898854686,0.27130406,78365.0,78350.0,0.11622]
[1769898855173,0.27130406,78365.0,78350.0,0.10344]
[1769898855572,0.27130406,78365.0,78350.0,0.11622]
[1769898855780,0.27130406,78365.0,78350.0,0.10344]
[1769898855981,0.27130406,78365.0,78350.0,0.11622]
[1769898856280,0.27130406,78365.0,78350.0,0.10344]
[1769898856681,0.27130406,78365.0,78350.0,0.11622]
[1769898857280,0.27130406,78365.0,78350.0,0.10344]
[1769898857979,0.27130406,78365.0,78352.0,0.01278]
[1769898858183,0.29432527,78364.0,78350.0,0.10344]
[1769898858577,0.30710327,78364.0,78350.0,0.10344]
[1769898858781,0.30710327,78364.0,78348.0,0.01278]
[1769898858983,0.30710327,78364.0,78346.0,0.012781]
[1769898859179,0.29432527,78361.0,78344.0,0.012781]
[1769898859484,0.29432527,78361.0,78343.0,0.29817953]
[1769898859682,0.29432527,78361.0,78345.0,0.012781]
[1769898860586,0.29432527,78361.0,78346.0,0.012781]
[1769898861585,0.29432527,78361.0,78343.0,0.29817953]
[1769898861586,0.29432527,78361.0,78344.0,0.29516231]
[1769898862387,0.29432527,78361.0,78346.0,0.012781]
[1769898862792,0.29432527,78361.0,78346.0,0.29516231]
[1769898863195,0.29432527,78353.0,78337.0,0.28238131]
[1769898863494,9.54e-05,78352.0,78337.0,0.28238131]
[1769898863684,9.54e-05,78352.0,78337.0,0.29516331]
[1769898864393,9.54e-05,78352.0,78333.0,0.11914373]
[1769898864394,0.29442067,78352.0,78338.0,0.012782]
[1769898864590,0.29442067,78352.0,78337.0,0.29516331]
[1769898864792,0.29442067,78352.0,78338.0,0.012782]
[1769898866295,0.29442067,78352.0,78337.0,0.28238131]
[1769898866296,0.29442067,78352.0,78339.0,0.012782]
[1769898866594,0.29442067,78352.0,78337.0,0.28238131]
[1769898866792,0.29442067,78352.0,78333.0,0.40152504]
[1769898867091,0.29442067,78352.0,78339.0,0.012782]
[1769898867494,0.29442067,78352.0,78340.0,0.012781]
[1769898868493,0.29442067,78352.0,78338.0,0.012782]
[1769898868798,0.29442067,78352.0,78341.0,0.012781]
[1769898868998,0.29442067,78352.0,78339.0,0.012782]
[1769898869200,0.29442067,78352.0,78336.0,0.012782]
[1769898869498,0.29442067,78352.0,78337.0,0.012782]
[1769898869702,0.29442067,78352.0,78338.0,0.012782]
[1769898869997,0.29442067,78352.0,78336.0,0.28238131]
[1769898870391,0.29442067,78352.0,78339.0,0.012782]
[1769898870802,0.29442067,78352.0,78336.0,0.28238131]
[1769898871093,0.29442067,78352.0,78339.0,0.012782]
[1769898872700,0.29442067,78352.0,78342.0,0.012781]
[1769898872999,0.29442067,78352.0,78336.0,0.28238131]
[1769898873900,0.29442067,78352.0,78339.0,0.012782]
[1769898875199,0.29442067,78352.0,78340.0,0.012781]
[1769898875396,0.29432527,78375.0,78356.0,0.28238131]
[1769898875596,0.012771,78405.0,78370.0,0.28238131]
[1769898875597,0.29432527,78386.0,78370.0,0.28238131]
[1769898875804,0.29432527,78386.0,78370.0,0.45913672]
[1769898876097,0.29432527,78391.0,78375.0,0.012776]
[1769898876402,0.29432527,78391.0,78380.0,0.17675541]
[1769898876599,0.29432527,78391.0,78372.0,0.012776]
[1769898876893,0.29432527,78391.0,78380.0,0.17675541]
[1769898882304,0.10348,78392.0,78380.0,0.17675541]
[1769898882493,0.28597513,78399.0,78382.0,0.45007515]
[1769898882701,0.10348,78401.0,78389.0,0.17675541]
[1769898882900,0.10348,78401.0,78390.0,0.17675541]
[1769898883301,0.28597513,78400.0,78389.0,0.17675541]
[1769898886204,0.28597513,78400.0,78373.0,0.471]
[1769898886205,0.28597513,78395.0,78390.0,0.17675541]
[1769898886407,0.28597513,78395.0,78380.0,0.17675541]
[1769898886408,0.28597513,78391.0,78380.0,0.17675541]
[1769898886611,0.28597513,78390.0,78380.0,0.17675541]
[1769898887411,0.28597513,78390.0,78373.0,0.012776]
[1769898887712,0.28597513,78390.0,78380.0,0.17675541]
[1769898888907,0.28597513,78390.0,78380.0,0.09912355]
[1769898889709,0.28597513,78388.0,78380.0,0.09912355]
[1769898890910,0.29874913,78387.0,78380.0,0.09862355]
[1769898891111,0.28597513,78387.0,78380.0,0.09862355]
[1769898891807,0.012775,78381.0,78377.0,0.17675541]
[1769898892011,0.28597513,78380.0,78370.0,0.17675541]
[1769898893015,0.28597513,78378.0,78370.0,0.17675541]
[1769898894615,0.28597513,78376.0,78370.0,0.17675541]
[1769898898420,0.28597513,78374.0,78360.0,0.17675541]
[1769898899313,0.29875113,78372.0,78352.0,0.01278]
[1769898899712,0.10344,78373.0,78338.0,0.017782]
[1769898899713,0.28597513,78355.0,78338.0,0.005]
[1769898899912,0.17675541,78350.0,78337.0,0.10344]
[1769898900112,0.28597513,78343.0,78323.0,0.10344]
[1769898900316,0.17675541,78336.0,78323.0,0.10344]
[1769898900619,0.17675541,78336.0,78319.0,9.68e-05]
[1769898900620,0.28597513,78332.0,78319.0,9.68e-05]
[1769898900913,0.17675541,78333.0,78304.0,0.005]
[1769898900914,0.28597513,78323.0,78304.0,0.005]
[1769898901114,0.012786,78312.0,78304.0,0.10344]
[1769898901308,0.47551654,78314.0,78299.0,0.005]
[1769898901512,0.29876113,78312.0,78287.0,0.01279]
[1769898901718,0.17675541,78297.0,78286.0,0.10348]
[1769898901916,0.2860737,78296.0,78286.0,0.10348]
[1769898902213,0.28597513,78294.0,78274.0,0.10348]
[1769898902413,0.17675541,78287.0,78274.0,0.10348]
[1769898903417,0.28597513,78286.0,78274.0,0.10348]
[1769898904020,0.28597513,78289.0,78265.0,0.27331974]
[1769898904220,0.29876513,78289.0,78265.0,0.27331974]
[1769898904811,9.857e-05,78296.0,78265.0,0.27331974]
[1769898905012,0.10348,78295.0,78269.0,0.27331974]
[1769898905217,0.10348,78295.0,78281.0,0.28611074]
[1769898905621,0.10348,78295.0,78281.0,0.27331974]
[1769898905925,0.10348,78295.0,78276.0,0.10348]
[1769898907120,0.28866036,78294.0,78276.0,0.10348]
[1769898908720,0.28866036,78289.0,78271.0,0.012793]
[1769898908924,0.28866036,78289.0,78267.0,0.012793]
[1769898909321,0.28866036,78289.0,78266.0,0.10352]
[1769898909525,0.28866036,78287.0,78266.0,0.10352]
[1769898909915,9.857e-05,78296.0,78278.0,0.27935173]
[1769898910222,0.28866036,78308.0,78286.0,0.27935173]
[1769898910525,0.28866036,78301.0,78280.0,0.10352]
[1769898910824,0.28866036,78299.0,78280.0,0.10352]
[1769898911724,0.30144936,78298.0,78280.0,0.10352]
[1769898915424,0.30144936,78296.0,78280.0,0.10352]
[1769898915623,0.30144936,78296.0,78277.0,0.012792]
[1769898915824,0.28866036,78291.0,78272.0,0.012793]
[1769898916023,0.28866036,78289.0,78272.0,0.012793]
[1769898916224,0.28866036,78287.0,78270.0,0.10356]
[1769898916625,0.28866036,78285.0,78270.0,0.10356]
[1769898916819,0.30145136,78284.0,78270.0,0.10356]
[1769898917825,0.30145136,78282.0,78270.0,0.10356]
[1769898918823,0.80341136,78282.0,78270.0,0.10356]
[1769898919226,0.28866036,78281.0,78270.0,0.10356]
[1769898920028,0.28866036,78286.0,78262.0,0.296357]
[1769898920224,0.012791,78281.0,78262.0,0.296357]
[1769898920821,0.72914036,78283.0,78262.0,0.296357]
[1769898921026,0.72914036,78283.0,78263.0,0.29214573]
[1769898921226,0.74193136,78283.0,78263.0,0.27935173]
[1769898921530,0.28866036,78282.0,78263.0,0.27935173]
[1769898922730,0.28866036,78282.0,78263.0,0.29214573]
[1769898923627,0.17717372,78280.0,78263.0,0.29214573]
[1769898923830,0.17717372,78273.0,78260.0,0.116355]
[1769898924632,0.17717372,78273.0,78260.0,0.41255679]
[1769898924931,0.17717372,78273.0,78253.0,0.27950551]
[1769898925131,0.17717372,78273.0,78260.0,0.27935173]
[1769898925726,0.17717372,78273.0,78261.0,0.012795]
[1769898925929,0.17717372,78273.0,78265.0,0.012794]
[1769898926131,0.17717372,78273.0,78262.0,0.012794]
[1769898926434,0.17717372,78273.0,78264.0,0.012794]
[1769898927234,0.17717372,78273.0,78263.0,0.012794]
[1769898927634,0.17717372,78273.0,78264.0,0.012794]
[1769898927936,0.17717372,78273.0,78261.0,0.012794]
[1769898928234,0.17717372,78273.0,78265.0,0.012794]
[1769898928636,0.17717372,78273.0,78260.0,0.27935173]
[1769898928838,0.17717372,78273.0,78265.0,0.012794]
[1769898929335,4.9e-07,78272.0,78269.0,0.012793]
[1769898929534,0.10356,78279.0,78269.0,0.012793]
[1769898929832,0.10356,78279.0,78268.0,0.012793]
[1769898930034,0.10356,78279.0,78267.0,0.012793]
[1769898930237,0.10356,78279.0,78269.0,0.012793]
[1769898931437,0.10356,78279.0,78266.0,0.29214573]
[1769898931738,0.10356,78279.0,78266.0,0.27935173]
[1769898932236,0.10356,78279.0,78267.0,0.012794]
[1769898932627,0.10356,78279.0,78266.0,0.29214573]
[1769898932834,0.10356,78279.0,78266.0,0.27935173]
[1769898933037,0.10356,78279.0,78267.0,0.012793]
[1769898934233,0.10356,78279.0,78266.0,0.27935173]
[1769898936136,0.01279,78286.0,78267.0,0.29214473]
[1769898936342,0.28866036,78288.0,78269.0,0.27935173]
[1769898936938,0.28866036,78286.0,78269.0,0.27935173]
[1769898937540,0.28483042,78284.0,78269.0,0.27935173]
[1769898937741,0.38843042,78283.0,78267.0,0.012794]
[1769898937939,0.38843042,78283.0,78267.0,0.30908328]
[1769898938244,0.38843042,78283.0,78269.0,0.012793]
[1769898938642,0.38843042,78283.0,78267.0,0.29628928]
[1769898938845,0.38843042,78283.0,78267.0,0.30908328]
[1769898941545,0.1667425,78282.0,78267.0,0.30908328]
[1769898941742,0.1667425,78281.0,78267.0,0.30908328]
[1769898941942,0.1667425,78280.0,78271.0,0.005]
[1769898942144,0.1667425,78279.0,78271.0,0.005]
[1769898942446,0.1667425,78278.0,78271.0,0.005]
[1769898942647,0.1667425,78277.0,78271.0,0.005]
[1769898942946,0.1667425,78276.0,78271.0,0.005]
[1769898943144,0.1667425,78275.0,78267.0,0.29628928]
[1769898943344,0.1667425,78274.0,78267.0,0.29628928]
[1769898943645,0.27763872,78282.0,78267.0,0.29628928]
[1769898943844,0.16651528,78281.0,78267.0,0.29628928]
[1769898944048,0.16651528,78280.0,78267.0,0.29628928]
[1769898944243,0.16651528,78279.0,78267.0,0.29628928]
[1769898944444,0.16651528,78278.0,78267.0,0.29628928]
[1769898944643,0.16651528,78277.0,78267.0,0.29628928]
[1769898944845,0.16651528,78276.0,78267.0,0.29628928]
[1769898945043,0.16651528,78275.0,78267.0,0.29628928]
[1769898945244,0.16651528,78274.0,78267.0,0.29628928]
[1769898945445,0.27763872,78282.0,78267.0,0.29628928]
[1769898945643,0.1664995,78281.0,78267.0,0.29628928]
[1769898945843,0.1664995,78280.0,78267.0,0.29628928]
[1769898946147,0.1664995,78279.0,78267.0,0.29628928]
[1769898946343,0.1664995,78278.0,78267.0,0.29628928]
[1769898946545,0.27763872,78282.0,78267.0,0.29628928]
[1769898946748,0.27763872,78280.0,78265.0,0.012794]
[1769898946946,0.27763872,78280.0,78266.0,0.27856201]
[1769898947147,0.27763872,78280.0,78267.0,0.012793]
[1769898947447,0.38123872,78283.0,78267.0,0.29135501]
[1769898947647,0.14560451,78282.0,78267.0,0.29135501]
[1769898947950,0.14560451,78281.0,78267.0,0.27856201]
[1769898948249,0.14560588,78280.0,78267.0,0.29135501]
[1769898948445,0.27763872,78282.0,78267.0,0.29135501]
[1769898948649,0.1455738,78281.0,78268.0,0.012793]
[1769898948842,0.27763872,78282.0,78271.0,0.005]
[1769898949149,0.14557112,78281.0,78271.0,0.005]
[1769898949349,0.27763872,78282.0,78271.0,0.005]
[1769898949550,0.14557815,78281.0,78271.0,0.005]
[1769898949751,0.27763872,78282.0,78271.0,0.005]
[1769898950052,0.42311466,78281.0,78267.0,0.29135501]
[1769898950249,0.27763872,78281.0,78271.0,0.005]
[1769898950552,0.15014812,78280.0,78271.0,0.005]
[1769898950749,0.27763872,78281.0,78271.0,0.005]
[1769898951050,0.15014812,78280.0,78271.0,0.005]
[1769898951351,0.27763872,78281.0,78267.0,0.012794]
[1769898951551,0.27763872,78279.0,78264.0,0.29135601]
[1769898951946,0.27763872,78279.0,78264.0,0.27856201]
[1769898952152,0.27763872,78279.0,78264.0,0.29135601]
[1769898952546,0.27763872,78279.0,78266.0,0.29135601]
[1769898952745,0.27763872,78279.0,78266.0,0.27856201]
[1769898953752,0.27763872,78279.0,78267.0,0.012794]
[1769898955250,0.27763872,78279.0,78265.0,0.27856201]
[1769898955555,0.27763872,78279.0,78266.0,0.012794]
[1769898956052,0.27763872,78279.0,78266.0,0.29135601]
[1769898956446,0.27763872,78281.0,78266.0,0.29135601]
[1769898957046,0.27763872,78281.0,78266.0,0.27856201]
[1769898959049,0.27763872,78281.0,78264.0,0.012794]
[1769898959352,0.27763872,78281.0,78263.0,0.27856201]
[1769898959555,0.27763872,78281.0,78262.0,0.1036]
[1769898959851,0.27763872,78281.0,78263.0,0.012794]
[1769898960051,0.27763872,78281.0,78265.0,0.012794]
[1769898961954,0.27763872,78281.0,78262.0,0.116394]
[1769898962250,0.27763872,78281.0,78264.0,0.012794]
[1769898963049,0.27763872,78281.0,78262.0,0.116394]
[1769898963249,0.27763872,78279.0,78262.0,0.1036]
[1769898963657,0.27763872,78279.0,78264.0,0.012794]
[1769898964249,0.27763872,78279.0,78264.0,0.29135601]
[1769898964451,0.27763872,78279.0,78264.0,0.012794]
[1769898965057,0.27763872,78279.0,78262.0,0.1036]
[1769898965447,0.27763872,78279.0,78253.0,0.27871579]
[1769898966655,0.27763872,78279.0,78253.0,0.00015378]
[1769898966850,0.27763872,78274.0,78254.0,0.012796]
[1769898967050,0.28708827,78272.0,78254.0,0.012796]
[1769898967246,0.28708827,78272.0,78253.0,0.29515605]
[1769898967952,0.28708827,78272.0,78253.0,0.00015378]
[1769898969059,0.28708827,78272.0,78253.0,0.28236005]
[1769898969256,0.28708827,78272.0,78253.0,0.00015378]
[1769898969658,0.29988127,78272.0,78253.0,0.00015378]
[1769898970657,0.28708827,78267.0,78241.0,0.1036]
[1769898970861,0.28708827,78265.0,78245.0,0.012797]
[1769898971259,0.28708827,78261.0,78242.0,0.012798]